[Event "Early-Titled-Tuesday-Blitz-January-23-2024"]
[Site "Chess.com"]
[Date "2024.01.23"]
[Round "2"]
[White "PattyCastillo"]
[Black "emeli_chess"]
[Result "1-0"]
[WhiteElo "1965"]
[BlackElo "2421"]
[TimeControl "180+1"]
[EndTime "8:18:35 PST"]
[Termination "PattyCastillo won on time"]

1. d4 {[%clk 0:03:00]} 1... Nf6 {[%clk 0:02:59.7]} 2. Nf3 {[%clk 0:02:59.6]}
2... b6 {[%clk 0:02:55.9]} 3. e3 {[%clk 0:02:58.7]} 3... Bb7 {[%clk 0:02:55.7]}
4. Bd3 {[%clk 0:02:58.6]} 4... c5 {[%clk 0:02:51.9]} 5. b3 {[%clk 0:02:57.9]}
5... cxd4 {[%clk 0:02:48.7]} 6. exd4 {[%clk 0:02:57.4]} 6... e6 {[%clk
0:02:45.7]} 7. O-O {[%clk 0:02:57.1]} 7... Be7 {[%clk 0:02:44.3]} 8. Nbd2 {[%clk
0:02:55.8]} 8... O-O {[%clk 0:02:43.9]} 9. Bb2 {[%clk 0:02:55.5]} 9... d6 {[%clk
0:02:43.6]} 10. c4 {[%clk 0:02:55.5]} 10... Nbd7 {[%clk 0:02:43.2]} 11. Re1
{[%clk 0:02:53.4]} 11... Qc7 {[%clk 0:02:39]} 12. Rc1 {[%clk 0:02:52.5]} 12...
Rac8 {[%clk 0:02:37.6]} 13. b4 {[%clk 0:02:45]} 13... Qb8 {[%clk 0:02:33.7]} 14.
d5 {[%clk 0:02:27.9]} 14... e5 {[%clk 0:02:31.9]} 15. Ng5 {[%clk 0:02:18.9]}
15... h6 {[%clk 0:02:27.6]} 16. Nge4 {[%clk 0:02:18.4]} 16... Nxe4 {[%clk
0:02:08.5]} 17. Nxe4 {[%clk 0:02:16.8]} 17... f5 {[%clk 0:02:07.7]} 18. Nc3
{[%clk 0:02:08.3]} 18... e4 {[%clk 0:02:01.7]} 19. Bf1 {[%clk 0:02:07.1]} 19...
Ne5 {[%clk 0:01:58.5]} 20. Nb5 {[%clk 0:02:00]} 20... a6 {[%clk 0:01:54.2]} 21.
Nd4 {[%clk 0:01:54.2]} 21... Bg5 {[%clk 0:01:40.9]} 22. Ne6 {[%clk 0:01:37.5]}
22... Bxc1 {[%clk 0:01:33.4]} 23. Bxc1 {[%clk 0:01:30.5]} 23... Rf6 {[%clk
0:01:29.8]} 24. Qh5 {[%clk 0:00:45.2]} 24... Re8 {[%clk 0:01:17.8]} 25. Bb2
{[%clk 0:00:42.9]} 25... Re7 {[%clk 0:01:16.2]} 26. Bxe5 {[%clk 0:00:39.7]}
26... dxe5 {[%clk 0:01:14.8]} 27. Rd1 {[%clk 0:00:34]} 27... a5 {[%clk
0:00:51.1]} 28. a3 {[%clk 0:00:33.3]} 28... axb4 {[%clk 0:00:48.6]} 29. axb4
{[%clk 0:00:34.2]} 29... Kh7 {[%clk 0:00:37.2]} 30. Qh4 {[%clk 0:00:32.1]} 30...
Rexe6 {[%clk 0:00:28.5]} 31. dxe6 {[%clk 0:00:31.4]} 31... Rxe6 {[%clk
0:00:28.8]} 32. Rd7 {[%clk 0:00:26]} 32... Bc6 {[%clk 0:00:27.4]} 33. Re7 {[%clk
0:00:25.9]} 33... Rxe7 {[%clk 0:00:24.1]} 34. Qxe7 {[%clk 0:00:25.5]} 34... f4
{[%clk 0:00:21.4]} 35. b5 {[%clk 0:00:23.5]} 35... Ba8 {[%clk 0:00:20.4]} 36. h4
{[%clk 0:00:19.9]} 36... e3 {[%clk 0:00:20.2]} 37. Bd3+ {[%clk 0:00:17]} 37...
e4 {[%clk 0:00:18.2]} 38. Bxe4+ {[%clk 0:00:17]} 38... Bxe4 {[%clk 0:00:18.1]}
39. Qxe4+ {[%clk 0:00:17.9]} 39... Kh8 {[%clk 0:00:18.3]} 40. fxe3 {[%clk
0:00:18.2]} 40... fxe3 {[%clk 0:00:18.2]} 41. Qxe3 {[%clk 0:00:18.3]} 41... Qc7
{[%clk 0:00:18.3]} 42. Qe4 {[%clk 0:00:16.1]} 42... Qc5+ {[%clk 0:00:14.5]} 43.
Kh2 {[%clk 0:00:14.7]} 43... Qc7+ {[%clk 0:00:13.5]} 44. g3 {[%clk 0:00:14.2]}
44... Qc5 {[%clk 0:00:13.6]} 45. Qd5 {[%clk 0:00:12.1]} 45... Qf2+ {[%clk
0:00:13.4]} 46. Kh3 {[%clk 0:00:10.4]} 46... g6 {[%clk 0:00:06.3]} 47. Qe5+
{[%clk 0:00:09.5]} 47... Kh7 {[%clk 0:00:05.9]} 48. Qe7+ {[%clk 0:00:09]} 48...
Kh8 {[%clk 0:00:05.7]} 49. Qe8+ {[%clk 0:00:07.3]} 49... Kh7 {[%clk 0:00:03.8]}
50. Qe7+ {[%clk 0:00:07.1]} 50... Kh8 {[%clk 0:00:03.6]} 51. Qe8+ {[%clk
0:00:04.9]} 51... Kg7 {[%clk 0:00:01.4]} 52. Qe7+ {[%clk 0:00:05.3]} 1-0

[Event "Early-Titled-Tuesday-Blitz-January-23-2024"]
[Site "Chess.com"]
[Date "2024.01.23"]
[Round "2"]
[White "AljoschaFeuerstack"]
[Black "Jumbo"]
[Result "0-1"]
[WhiteElo "2615"]
[BlackElo "2971"]
[TimeControl "180+1"]
[EndTime "8:18:36 PST"]
[Termination "Jumbo won by resignation"]

1. e4 {[%clk 0:03:00.9]} 1... c5 {[%clk 0:02:55.6]} 2. Nf3 {[%clk 0:02:58.2]}
2... d6 {[%clk 0:02:55.9]} 3. g3 {[%clk 0:02:56.3]} 3... Nf6 {[%clk 0:02:54.5]}
4. d3 {[%clk 0:02:55.3]} 4... g6 {[%clk 0:02:54.6]} 5. Bg2 {[%clk 0:02:55.6]}
5... Bg7 {[%clk 0:02:55.2]} 6. O-O {[%clk 0:02:55.9]} 6... O-O {[%clk
0:02:55.6]} 7. Re1 {[%clk 0:02:51.5]} 7... Nc6 {[%clk 0:02:56.1]} 8. c3 {[%clk
0:02:51.7]} 8... e5 {[%clk 0:02:24.2]} 9. a3 {[%clk 0:02:47]} 9... Re8 {[%clk
0:02:21.7]} 10. b4 {[%clk 0:02:45]} 10... a6 {[%clk 0:02:21.2]} 11. Be3 {[%clk
0:02:33.8]} 11... b6 {[%clk 0:02:18.4]} 12. Nbd2 {[%clk 0:02:18.4]} 12... h6
{[%clk 0:02:16.8]} 13. Nc4 {[%clk 0:02:12.8]} 13... Be6 {[%clk 0:02:14.3]} 14.
h3 {[%clk 0:01:45.1]} 14... Nxe4 {[%clk 0:01:57.5]} 15. Nfd2 {[%clk 0:00:37.9]}
15... Nxd2 {[%clk 0:01:41.2]} 16. Bxc6 {[%clk 0:00:18]} 16... Nxc4 {[%clk
0:01:40.2]} 17. dxc4 {[%clk 0:00:18.5]} 17... Bxh3 {[%clk 0:01:09]} 18. Qf3
{[%clk 0:00:10.6]} 18... Be6 {[%clk 0:00:48.4]} 19. Bxa8 {[%clk 0:00:09.9]}
19... Qxa8 {[%clk 0:00:49.3]} 20. Qxa8 {[%clk 0:00:10.1]} 20... Rxa8 {[%clk
0:00:50]} 21. Rad1 {[%clk 0:00:10.6]} 21... Bf8 {[%clk 0:00:50.4]} 22. f4 {[%clk
0:00:09.7]} 22... Bxc4 {[%clk 0:00:46.8]} 23. bxc5 {[%clk 0:00:09.4]} 23... bxc5
{[%clk 0:00:44.9]} 24. fxe5 {[%clk 0:00:10]} 24... dxe5 {[%clk 0:00:45.5]} 25.
Rd7 {[%clk 0:00:10.4]} 25... Be6 {[%clk 0:00:42.8]} 26. Rc7 {[%clk 0:00:10.5]}
26... c4 {[%clk 0:00:43.2]} 27. Bc5 {[%clk 0:00:10.7]} 27... Bg7 {[%clk
0:00:43.6]} 28. Bd6 {[%clk 0:00:10.3]} 28... e4 {[%clk 0:00:27.9]} 29. Rxe4
{[%clk 0:00:09.5]} 29... Bxc3 {[%clk 0:00:28.2]} 30. Rxe6 {[%clk 0:00:08.5]}
30... fxe6 {[%clk 0:00:27.4]} 31. Rxc4 {[%clk 0:00:09.4]} 31... Bf6 {[%clk
0:00:24.3]} 32. Rc6 {[%clk 0:00:09.6]} 32... g5 {[%clk 0:00:22.5]} 33. Bb4
{[%clk 0:00:09.6]} 33... Kf7 {[%clk 0:00:23]} 34. Rc7+ {[%clk 0:00:09.6]} 34...
Kg6 {[%clk 0:00:23.6]} 35. Rc6 {[%clk 0:00:10.5]} 35... Kf5 {[%clk 0:00:23.8]}
36. Rc5+ {[%clk 0:00:10.7]} 36... e5 {[%clk 0:00:23.3]} 37. Kg2 {[%clk
0:00:11.1]} 37... h5 {[%clk 0:00:23.8]} 38. Rc6 {[%clk 0:00:11.5]} 38... g4
{[%clk 0:00:24.1]} 39. Bd2 {[%clk 0:00:11.5]} 39... Bg5 {[%clk 0:00:23.5]} 40.
Bc3 {[%clk 0:00:11.5]} 40... Bf6 {[%clk 0:00:18.5]} 41. Rc5 {[%clk 0:00:11.8]}
41... Rb8 {[%clk 0:00:17.2]} 42. Ra5 {[%clk 0:00:12.1]} 42... Rb3 {[%clk
0:00:17.2]} 43. Be1 {[%clk 0:00:10.7]} 43... Rb2+ {[%clk 0:00:16.6]} 44. Kf1
{[%clk 0:00:10.9]} 44... Rb1 {[%clk 0:00:15.7]} 45. Ke2 {[%clk 0:00:10.8]} 45...
Rb2+ {[%clk 0:00:11.4]} 46. Kf1 {[%clk 0:00:10.4]} 46... Rb3 {[%clk 0:00:10.8]}
47. Rxa6 {[%clk 0:00:09.9]} 47... Be7 {[%clk 0:00:11.2]} 48. Ke2 {[%clk
0:00:10.2]} 48... Rxa3 {[%clk 0:00:10.5]} 49. Rh6 {[%clk 0:00:10.6]} 49... Ra2+
{[%clk 0:00:09]} 50. Kd3 {[%clk 0:00:10]} 50... e4+ {[%clk 0:00:07.2]} 51. Kc4
{[%clk 0:00:10.6]} 51... e3 {[%clk 0:00:06.2]} 52. Rxh5+ {[%clk 0:00:10.1]}
52... Ke4 {[%clk 0:00:06.9]} 53. Rh6 {[%clk 0:00:10]} 53... Kf3 {[%clk
0:00:06.9]} 54. Re6 {[%clk 0:00:09.8]} 54... Bg5 {[%clk 0:00:07.2]} 55. Kd3
{[%clk 0:00:10.2]} 55... Ra3+ {[%clk 0:00:06.9]} 56. Kd4 {[%clk 0:00:09.6]}
56... e2 {[%clk 0:00:06.2]} 57. Re8 {[%clk 0:00:09]} 57... Ra1 {[%clk
0:00:06.1]} 58. Bc3 {[%clk 0:00:09]} 58... Rd1+ {[%clk 0:00:06.6]} 59. Kc4
{[%clk 0:00:09.4]} 59... Be3 {[%clk 0:00:06.8]} 60. Rf8+ {[%clk 0:00:09.7]}
60... Kxg3 {[%clk 0:00:07]} 61. Re8 {[%clk 0:00:10.3]} 61... e1=Q {[%clk
0:00:07.2]} 62. Bxe1+ {[%clk 0:00:09.9]} 62... Rxe1 {[%clk 0:00:08.1]} 63. Kd3
{[%clk 0:00:10.5]} 63... Bf2 {[%clk 0:00:08.7]} 0-1

[Event "Early-Titled-Tuesday-Blitz-January-23-2024"]
[Site "Chess.com"]
[Date "2024.01.23"]
[Round "2"]
[White "Smile2005"]
[Black "GaiozNigalidze"]
[Result "0-1"]
[WhiteElo "2387"]
[BlackElo "2707"]
[TimeControl "180+1"]
[EndTime "8:18:36 PST"]
[Termination "GaiozNigalidze won by checkmate"]

1. e4 {[%clk 0:03:00.9]} 1... c5 {[%clk 0:02:59.7]} 2. Nf3 {[%clk 0:03:01]} 2...
d6 {[%clk 0:03:00.2]} 3. d4 {[%clk 0:03:00.8]} 3... cxd4 {[%clk 0:03:00.5]} 4.
Nxd4 {[%clk 0:03:01.7]} 4... Nf6 {[%clk 0:03:00.4]} 5. f3 {[%clk 0:03:02.2]}
5... e5 {[%clk 0:02:55.7]} 6. Nb3 {[%clk 0:03:02.3]} 6... Be7 {[%clk 0:02:40.6]}
7. c4 {[%clk 0:03:01.8]} 7... O-O {[%clk 0:02:40.5]} 8. Be3 {[%clk 0:03:01.4]}
8... a5 {[%clk 0:02:37.1]} 9. Nc3 {[%clk 0:02:59.9]} 9... a4 {[%clk 0:02:30.5]}
10. Nd2 {[%clk 0:02:59.9]} 10... Qa5 {[%clk 0:02:29.7]} 11. Rc1 {[%clk
0:02:57.3]} 11... Nc6 {[%clk 0:02:23.2]} 12. Be2 {[%clk 0:02:56.3]} 12... Bd8
{[%clk 0:02:12.9]} 13. O-O {[%clk 0:02:54.6]} 13... Bb6 {[%clk 0:02:13.1]} 14.
Bf2 {[%clk 0:02:47.1]} 14... Bd4 {[%clk 0:01:55.6]} 15. Ndb1 {[%clk 0:02:39]}
15... Be6 {[%clk 0:01:51.5]} 16. Qd2 {[%clk 0:02:30]} 16... Qb4 {[%clk
0:01:30.9]} 17. Rfd1 {[%clk 0:02:17]} 17... Qc5 {[%clk 0:01:11.8]} 18. Bf1
{[%clk 0:02:08.7]} 18... Rfd8 {[%clk 0:01:07]} 19. Nd5 {[%clk 0:02:06.9]} 19...
Nd7 {[%clk 0:01:01]} 20. Nbc3 {[%clk 0:01:46.2]} 20... Bxf2+ {[%clk 0:00:51.1]}
21. Qxf2 {[%clk 0:01:45.9]} 21... Nd4 {[%clk 0:00:46.7]} 22. Nb5 {[%clk
0:01:25.8]} 22... Nxb5 {[%clk 0:00:31.6]} 23. cxb5 {[%clk 0:01:26.7]} 23...
Qxf2+ {[%clk 0:00:30.8]} 24. Kxf2 {[%clk 0:01:27.6]} 24... Bxd5 {[%clk
0:00:22.8]} 25. Rxd5 {[%clk 0:01:28.5]} 25... Nb6 {[%clk 0:00:22.3]} 26. Rd2
{[%clk 0:01:23.5]} 26... Rd7 {[%clk 0:00:22.4]} 27. Rdc2 {[%clk 0:01:13.3]}
27... Kf8 {[%clk 0:00:20.8]} 28. Bc4 {[%clk 0:01:04.4]} 28... Rc8 {[%clk
0:00:17.2]} 29. b3 {[%clk 0:00:57.6]} 29... Ke7 {[%clk 0:00:13.2]} 30. bxa4
{[%clk 0:00:51.1]} 30... Nxa4 {[%clk 0:00:13.1]} 31. Bd5 {[%clk 0:00:46.3]}
31... Nc5 {[%clk 0:00:10.1]} 32. Ke3 {[%clk 0:00:39.6]} 32... Ra8 {[%clk
0:00:10.3]} 33. Rc3 {[%clk 0:00:33.7]} 33... Ra5 {[%clk 0:00:11]} 34. Rb1 {[%clk
0:00:28.4]} 34... Rd8 {[%clk 0:00:11.2]} 35. Rb4 {[%clk 0:00:26.2]} 35... Rda8
{[%clk 0:00:11.3]} 36. g4 {[%clk 0:00:21.5]} 36... Ra3 {[%clk 0:00:10.4]} 37.
Rc4 {[%clk 0:00:18.1]} 37... Rxc3+ {[%clk 0:00:08.2]} 38. Rxc3 {[%clk 0:00:19]}
38... Ra5 {[%clk 0:00:08.6]} 39. Bc4 {[%clk 0:00:17.5]} 39... Ra4 {[%clk
0:00:08.9]} 40. Bd5 {[%clk 0:00:16.7]} 40... Rb4 {[%clk 0:00:08.2]} 41. Bc4
{[%clk 0:00:13.8]} 41... Rb2 {[%clk 0:00:08.3]} 42. h4 {[%clk 0:00:14.2]} 42...
h6 {[%clk 0:00:07.4]} 43. h5 {[%clk 0:00:14.4]} 43... g6 {[%clk 0:00:07.3]} 44.
Ra3 {[%clk 0:00:14.6]} 44... gxh5 {[%clk 0:00:06.7]} 45. gxh5 {[%clk 0:00:15.5]}
45... Rh2 {[%clk 0:00:06.4]} 46. Ra7 {[%clk 0:00:15.6]} 46... Rxh5 {[%clk
0:00:06.3]} 47. Bd5 {[%clk 0:00:15.9]} 47... Rh2 {[%clk 0:00:05.2]} 48. Bxb7
{[%clk 0:00:16.1]} 48... Kf6 {[%clk 0:00:05.6]} 49. Bd5 {[%clk 0:00:16.2]} 49...
Ne6 {[%clk 0:00:05.7]} 50. Bxe6 {[%clk 0:00:16]} 50... Kxe6 {[%clk 0:00:06.6]}
51. b6 {[%clk 0:00:16.4]} 51... Rb2 {[%clk 0:00:06.3]} 52. b7 {[%clk 0:00:17.3]}
52... h5 {[%clk 0:00:06.7]} 53. a4 {[%clk 0:00:17.4]} 53... h4 {[%clk
0:00:07.3]} 54. a5 {[%clk 0:00:17]} 54... h3 {[%clk 0:00:07.8]} 55. a6 {[%clk
0:00:15.7]} 55... h2 {[%clk 0:00:07.4]} 56. Ra8 {[%clk 0:00:15.8]} 56... h1=Q
{[%clk 0:00:07.8]} 57. b8=Q {[%clk 0:00:16.1]} 57... Qe1+ {[%clk 0:00:07]} 58.
Kd3 {[%clk 0:00:15.8]} 58... Qe2+ {[%clk 0:00:07.4]} 59. Kc3 {[%clk 0:00:16.1]}
59... Qc2# {[%clk 0:00:08.1]} 0-1

[Event "Early-Titled-Tuesday-Blitz-January-23-2024"]
[Site "Chess.com"]
[Date "2024.01.23"]
[Round "2"]
[White "Bauman_Guy"]
[Black "nindjaxx8"]
[Result "1-0"]
[WhiteElo "2894"]
[BlackElo "2591"]
[TimeControl "180+1"]
[EndTime "8:18:41 PST"]
[Termination "Bauman_Guy won on time"]

1. e4 {[%clk 0:03:00.9]} 1... e6 {[%clk 0:02:59.6]} 2. d4 {[%clk 0:03:00.9]}
2... d5 {[%clk 0:02:59.8]} 3. Nd2 {[%clk 0:03:01.3]} 3... c5 {[%clk 0:02:54.9]}
4. Ngf3 {[%clk 0:03:01.5]} 4... cxd4 {[%clk 0:02:47.6]} 5. Nxd4 {[%clk
0:02:59.8]} 5... Nc6 {[%clk 0:02:46.8]} 6. Nxc6 {[%clk 0:03:00]} 6... bxc6
{[%clk 0:02:47.7]} 7. Bd3 {[%clk 0:03:00.7]} 7... Nf6 {[%clk 0:02:45.9]} 8. O-O
{[%clk 0:03:01]} 8... Be7 {[%clk 0:02:34.2]} 9. Qe2 {[%clk 0:03:01.1]} 9... Bb7
{[%clk 0:02:32]} 10. c4 {[%clk 0:02:57.5]} 10... dxe4 {[%clk 0:02:27.4]} 11.
Nxe4 {[%clk 0:02:57.2]} 11... O-O {[%clk 0:02:24.3]} 12. Rd1 {[%clk 0:02:53.4]}
12... Qc8 {[%clk 0:02:20.3]} 13. Bf4 {[%clk 0:02:51.9]} 13... Rd8 {[%clk
0:02:16.7]} 14. c5 {[%clk 0:02:42.9]} 14... Rd5 {[%clk 0:02:09.8]} 15. b4 {[%clk
0:02:36.3]} 15... a5 {[%clk 0:02:07.8]} 16. a3 {[%clk 0:02:29]} 16... axb4
{[%clk 0:02:03.7]} 17. axb4 {[%clk 0:02:28.7]} 17... Qd8 {[%clk 0:01:57]} 18.
Nd6 {[%clk 0:02:24.7]} 18... Bxd6 {[%clk 0:01:53]} 19. Bxd6 {[%clk 0:02:24.4]}
19... Ne8 {[%clk 0:01:49.6]} 20. Rxa8 {[%clk 0:02:11.3]} 20... Qxa8 {[%clk
0:01:47.1]} 21. Be4 {[%clk 0:01:56.2]} 21... Qa2 {[%clk 0:01:29.1]} 22. Qf1
{[%clk 0:01:16.3]} 22... Rxd1 {[%clk 0:01:20.6]} 23. Qxd1 {[%clk 0:01:17.2]}
23... Qc4 {[%clk 0:01:21.1]} 24. Qb1 {[%clk 0:01:11.2]} 24... f5 {[%clk
0:00:55.9]} 25. Bd3 {[%clk 0:01:02]} 25... Qd4 {[%clk 0:00:55]} 26. Bb8 {[%clk
0:00:50.4]} 26... Nf6 {[%clk 0:00:50.8]} 27. h3 {[%clk 0:00:47.6]} 27... Nd5
{[%clk 0:00:48.1]} 28. Qe1 {[%clk 0:00:46]} 28... Kf7 {[%clk 0:00:43.4]} 29. Bf1
{[%clk 0:00:30]} 29... Nxb4 {[%clk 0:00:29.5]} 30. Bd6 {[%clk 0:00:21]} 30...
Nd5 {[%clk 0:00:09.4]} 31. Qb1 {[%clk 0:00:19.2]} 31... Qb4 {[%clk 0:00:09.5]}
32. Qa1 {[%clk 0:00:19.5]} 32... Nc3 {[%clk 0:00:06.3]} 33. Qa7 {[%clk
0:00:19.3]} 33... Qb1 {[%clk 0:00:05.9]} 34. f3 {[%clk 0:00:14.9]} 34... Ne2+
{[%clk 0:00:04.5]} 35. Kf2 {[%clk 0:00:15.1]} 35... Nd4 {[%clk 0:00:05.1]} 36.
Qb8 {[%clk 0:00:12]} 36... Kg6 {[%clk 0:00:02.8]} 37. Qe8+ {[%clk 0:00:11]}
37... Kf6 {[%clk 0:00:03]} 38. Qf8+ {[%clk 0:00:09.9]} 38... Kg6 {[%clk
0:00:03]} 39. h4 {[%clk 0:00:06.8]} 39... h5 {[%clk 0:00:02.4]} 40. Qe8+ {[%clk
0:00:06.5]} 40... Kh6 {[%clk 0:00:02.8]} 41. Bf4+ {[%clk 0:00:05.6]} 41... Kh7
{[%clk 0:00:03.4]} 42. Qxh5+ {[%clk 0:00:05.9]} 42... Kg8 {[%clk 0:00:03.9]} 43.
Qe8+ {[%clk 0:00:05.1]} 43... Kh7 {[%clk 0:00:04.4]} 44. Qd7 {[%clk 0:00:05.8]}
44... Qc2+ {[%clk 0:00:04.2]} 45. Kg1 {[%clk 0:00:05.9]} 45... Qd1 {[%clk
0:00:04.9]} 46. Qd6 {[%clk 0:00:03.6]} 46... Ba6 {[%clk 0:00:02.8]} 47. Kh2
{[%clk 0:00:02.9]} 47... Bxf1 {[%clk 0:00:01.9]} 48. Be5 {[%clk 0:00:03.4]}
48... Qe2 {[%clk 0:00:02]} 49. Kg3 {[%clk 0:00:00.8]} 49... Qxg2+ {[%clk
0:00:02.5]} 50. Kf4 {[%clk 0:00:01.7]} 50... Ne2+ {[%clk 0:00:02.5]} 51. Ke3
{[%clk 0:00:02.6]} 51... Ng3 {[%clk 0:00:02.7]} 52. Bxg3 {[%clk 0:00:02.5]}
52... Qe2+ {[%clk 0:00:02.7]} 53. Kf4 {[%clk 0:00:02.6]} 53... Bg2 {[%clk
0:00:03.4]} 54. Kg5 {[%clk 0:00:01.6]} 54... Qxf3 {[%clk 0:00:03.6]} 55. Qf4
{[%clk 0:00:02.3]} 55... Qe2 {[%clk 0:00:02.1]} 56. h5 {[%clk 0:00:02.7]} 56...
Bf3 {[%clk 0:00:02.2]} 57. h6 {[%clk 0:00:02.2]} 57... gxh6+ {[%clk 0:00:02.1]}
58. Kf6 {[%clk 0:00:03]} 58... Bh5 {[%clk 0:00:02.2]} 59. Qc7+ {[%clk
0:00:02.5]} 59... Bf7 {[%clk 0:00:02.2]} 60. Qxf7+ {[%clk 0:00:03.2]} 1-0

[Event "Early-Titled-Tuesday-Blitz-January-23-2024"]
[Site "Chess.com"]
[Date "2024.01.23"]
[Round "2"]
[White "RichardLeyvaP"]
[Black "itsdsyr"]
[Result "1-0"]
[WhiteElo "2498"]
[BlackElo "2236"]
[TimeControl "180+1"]
[EndTime "8:18:45 PST"]
[Termination "RichardLeyvaP won by checkmate"]

1. e4 {[%clk 0:02:59.4]} 1... e5 {[%clk 0:02:59.5]} 2. d4 {[%clk 0:02:58]} 2...
exd4 {[%clk 0:02:55.7]} 3. Qxd4 {[%clk 0:02:58.2]} 3... Nc6 {[%clk 0:02:54.1]}
4. Qe3 {[%clk 0:02:57.6]} 4... Nf6 {[%clk 0:02:53.9]} 5. Nc3 {[%clk 0:02:57.7]}
5... Bb4 {[%clk 0:02:53.7]} 6. Bd2 {[%clk 0:02:57.9]} 6... d6 {[%clk 0:02:45.3]}
7. O-O-O {[%clk 0:02:57.6]} 7... Be6 {[%clk 0:02:44.8]} 8. Qg3 {[%clk
0:02:57.8]} 8... Nh5 {[%clk 0:02:12]} 9. Qf3 {[%clk 0:02:57.6]} 9... Nf6 {[%clk
0:02:10.6]} 10. h3 {[%clk 0:02:49.3]} 10... Qe7 {[%clk 0:01:58.7]} 11. Bb5
{[%clk 0:02:48.6]} 11... a6 {[%clk 0:01:53.4]} 12. Bxc6+ {[%clk 0:02:38.2]}
12... bxc6 {[%clk 0:01:54.3]} 13. Nge2 {[%clk 0:02:39]} 13... O-O {[%clk
0:01:51.8]} 14. Bg5 {[%clk 0:02:32.3]} 14... h6 {[%clk 0:01:49]} 15. Bxf6 {[%clk
0:02:32.2]} 15... Qxf6 {[%clk 0:01:49.9]} 16. Qxf6 {[%clk 0:02:31.9]} 16... gxf6
{[%clk 0:01:50.8]} 17. g4 {[%clk 0:02:29.4]} 17... Bc5 {[%clk 0:01:31.5]} 18.
Nd4 {[%clk 0:02:27.4]} 18... Bxd4 {[%clk 0:01:24.7]} 19. Rxd4 {[%clk 0:02:26.8]}
19... Rfb8 {[%clk 0:01:24.2]} 20. Re1 {[%clk 0:02:07.2]} 20... a5 {[%clk
0:01:23.7]} 21. b3 {[%clk 0:02:04.8]} 21... Rb4 {[%clk 0:01:22.1]} 22. Rxb4
{[%clk 0:01:26.6]} 22... axb4 {[%clk 0:01:22]} 23. Na4 {[%clk 0:01:27.5]} 23...
c5 {[%clk 0:01:10.2]} 24. Kb1 {[%clk 0:01:27.6]} 24... Kg7 {[%clk 0:01:06.4]}
25. Nb2 {[%clk 0:01:26.8]} 25... h5 {[%clk 0:01:00.9]} 26. Nd3 {[%clk
0:01:23.8]} 26... hxg4 {[%clk 0:00:59.2]} 27. hxg4 {[%clk 0:01:24]} 27... Rh8
{[%clk 0:00:56.9]} 28. Rg1 {[%clk 0:01:23]} 28... Rh2 {[%clk 0:00:54.5]} 29. Kc1
{[%clk 0:01:03.5]} 29... Kf8 {[%clk 0:00:54.3]} 30. Kd2 {[%clk 0:01:02.9]} 30...
Ke7 {[%clk 0:00:54.5]} 31. Ke3 {[%clk 0:01:02.9]} 31... Rh8 {[%clk 0:00:54.5]}
32. Ra1 {[%clk 0:00:58.8]} 32... Ra8 {[%clk 0:00:54.9]} 33. f3 {[%clk
0:00:59.1]} 33... Rh8 {[%clk 0:00:50.8]} 34. a4 {[%clk 0:00:52.3]} 34... bxa3
{[%clk 0:00:49.4]} 35. Rxa3 {[%clk 0:00:51.8]} 35... Rh2 {[%clk 0:00:50]} 36.
Nf2 {[%clk 0:00:48.9]} 36... Kd7 {[%clk 0:00:46.7]} 37. Ra1 {[%clk 0:00:46.3]}
37... Rh8 {[%clk 0:00:36.8]} 38. Nd3 {[%clk 0:00:41.6]} 38... c4 {[%clk
0:00:30.4]} 39. bxc4 {[%clk 0:00:41.4]} 39... Bxc4 {[%clk 0:00:31.3]} 40. Nf4
{[%clk 0:00:41.2]} 40... Rh2 {[%clk 0:00:27.4]} 41. Rc1 {[%clk 0:00:39.9]} 41...
c5 {[%clk 0:00:17.6]} 42. Nh5 {[%clk 0:00:39.8]} 42... Ke7 {[%clk 0:00:17.4]}
43. Ng3 {[%clk 0:00:32.8]} 43... Rg2 {[%clk 0:00:16.9]} 44. Nf5+ {[%clk
0:00:32.4]} 44... Ke6 {[%clk 0:00:16.7]} 45. Rd1 {[%clk 0:00:24.1]} 45... d5
{[%clk 0:00:15.7]} 46. exd5+ {[%clk 0:00:24.2]} 46... Bxd5 {[%clk 0:00:15.9]}
47. Kf4 {[%clk 0:00:21.2]} 47... Rxc2 {[%clk 0:00:15.1]} 48. Ne3 {[%clk
0:00:13.8]} 48... Rc4+ {[%clk 0:00:12.6]} 49. Nxc4 {[%clk 0:00:13.6]} 49... Bxc4
{[%clk 0:00:13.5]} 50. Ke4 {[%clk 0:00:13.4]} 50... Bb3 {[%clk 0:00:12.8]} 51.
Ra1 {[%clk 0:00:11.8]} 51... c4 {[%clk 0:00:12.9]} 52. Ra6+ {[%clk 0:00:11.7]}
52... Ke7 {[%clk 0:00:13.4]} 53. f4 {[%clk 0:00:10.8]} 53... Bd1 {[%clk
0:00:12.8]} 54. g5 {[%clk 0:00:10.1]} 54... fxg5 {[%clk 0:00:13]} 55. fxg5
{[%clk 0:00:11]} 55... c3 {[%clk 0:00:10.9]} 56. Rc6 {[%clk 0:00:10.4]} 56... c2
{[%clk 0:00:11.3]} 57. Ke5 {[%clk 0:00:10.4]} 57... Kd7 {[%clk 0:00:09.9]} 58.
Rc3 {[%clk 0:00:10.5]} 58... Ke7 {[%clk 0:00:10.4]} 59. Rc7+ {[%clk 0:00:09.4]}
59... Kd8 {[%clk 0:00:09.4]} 60. Kd6 {[%clk 0:00:09.7]} 60... Ke8 {[%clk
0:00:09.2]} 61. Rc8# {[%clk 0:00:09.6]} 1-0